Workbook

Sheet Tabelle1
B1: Vers. | C1: GPS | D1: Visible Tracklenght | E1: Map | F1: Recording | G1: Navigation | H1: Sensor Debug | I1: Screen | J1: Starttime | K1: row | L1: cpu 90 min 1 | M1: cpu 90 min 2 | N1: cpu 90 min 3 | O1: cpu 90 min 4 | P1: cpu 90 min 5 | Q1: cpu 90 min 6 | R1: cpu 90 min 1 | S1: cpu 90 min 2 | T1: cpu 90 min 3 | U1: cpu 90 min 4 | V1: cpu 90 min 5 | W1: cpu 90 min 6 | X1: result description
A2: Baseline 0 | B2: 3.45.0 | C2: 90min mtb loop | D2: 150km elevation style | E2: empty | F2: off | G2: off | H2: off | I2: Dashboard with Altitude diagramm | J2: 2020-04-27T10:50:30 | K2: 12 | L2: =SUM(OFFSET(Tabelle2!$C$1:$D$1,$K2-1+18,0))-SUM(OFFSET(Tabelle2!$C$1:$D$1,$K2-1,0)) -> 199431 | M2: =SUM(OFFSET(Tabelle2!$C$1:$D$1,$K2-1+36,0))-SUM(OFFSET(Tabelle2!$C$1:$D$1,$K2-1+18,0)) -> 200996 | N2: =SUM(OFFSET(Tabelle2!$C$1:$D$1,$K2-1+54,0))-SUM(OFFSET(Tabelle2!$C$1:$D$1,$K2-1+36,0)) -> 200710 | O2: =SUM(OFFSET(Tabelle2!$C$1:$D$1,$K2-1+72,0))-SUM(OFFSET(Tabelle2!$C$1:$D$1,$K2-1+54,0)) -> 200567 | P2: =SUM(OFFSET(Tabelle2!$C$1:$D$1,$K2-1+90,0))-SUM(OFFSET(Tabelle2!$C$1:$D$1,$K2-1+72,0)) -> 201648 | Q2: =SUM(OFFSET(Tabelle2!$C$1:$D$1,$K2-1+108,0))-SUM(OFFSET(Tabelle2!$C$1:$D$1,$K2-1+90,0)) -> 202807 | R2: =L2/AVERAGE($L$3:$Q$3) -> 84% | S2: =M2/AVERAGE($L$3:$Q$3) -> 85% | T2: =N2/AVERAGE($L$3:$Q$3) -> 85% | U2: =O2/AVERAGE($L$3:$Q$3) -> 85% | V2: =P2/AVERAGE($L$3:$Q$3) -> 85% | W2: =Q2/AVERAGE($L$3:$Q$3) -> 86% | X2: testfailure? Maybe wrong gps simulation?
A3: Baseline 1 | B3: 3.45.0 | C3: 90min mtb loop | D3: 150km elevation style | E3: empty | F3: off | G3: off | H3: off | I3: Dashboard with Altitude diagramm | J3: 2020-04-27T19:55:00 | K3: 122 | L3: =SUM(OFFSET(Tabelle2!$C$1:$D$1,$K3-1+18,0))-SUM(OFFSET(Tabelle2!$C$1:$D$1,$K3-1,0)) -> 237431 | M3: =SUM(OFFSET(Tabelle2!$C$1:$D$1,$K3-1+36,0))-SUM(OFFSET(Tabelle2!$C$1:$D$1,$K3-1+18,0)) -> 237104 | N3: =SUM(OFFSET(Tabelle2!$C$1:$D$1,$K3-1+54,0))-SUM(OFFSET(Tabelle2!$C$1:$D$1,$K3-1+36,0)) -> 236921 | O3: =SUM(OFFSET(Tabelle2!$C$1:$D$1,$K3-1+72,0))-SUM(OFFSET(Tabelle2!$C$1:$D$1,$K3-1+54,0)) -> 237267 | P3: =SUM(OFFSET(Tabelle2!$C$1:$D$1,$K3-1+90,0))-SUM(OFFSET(Tabelle2!$C$1:$D$1,$K3-1+72,0)) -> 236777 | Q3: =SUM(OFFSET(Tabelle2!$C$1:$D$1,$K3-1+108,0))-SUM(OFFSET(Tabelle2!$C$1:$D$1,$K3-1+90,0)) -> 236681 | R3: =L3/AVERAGE($L$3:$Q$3) -> 100% | S3: =M3/AVERAGE($L$3:$Q$3) -> 100% | T3: 100% | U3: 100% | V3: 100% | W3: 100%
A4: Baseline 2 | B4: 3.45.0 | C4: 90min mtb loop | D4: 150km elevation style | E4: empty | F4: off | G4: off | H4: off | I4: Dashboard with Altitude diagramm | J4: 2020-04-29T07:10:00 | K4: 390 | L4: =SUM(OFFSET(Tabelle2!$C$1:$D$1,$K4-1+18,0))-SUM(OFFSET(Tabelle2!$C$1:$D$1,$K4-1,0)) -> 236964 | M4: =SUM(OFFSET(Tabelle2!$C$1:$D$1,$K4-1+36,0))-SUM(OFFSET(Tabelle2!$C$1:$D$1,$K4-1+18,0)) -> 236285 | N4: =SUM(OFFSET(Tabelle2!$C$1:$D$1,$K4-1+54,0))-SUM(OFFSET(Tabelle2!$C$1:$D$1,$K4-1+36,0)) -> 236625 | O4: =SUM(OFFSET(Tabelle2!$C$1:$D$1,$K4-1+72,0))-SUM(OFFSET(Tabelle2!$C$1:$D$1,$K4-1+54,0)) -> 236789 | P4: =SUM(OFFSET(Tabelle2!$C$1:$D$1,$K4-1+90,0))-SUM(OFFSET(Tabelle2!$C$1:$D$1,$K4-1+72,0)) -> 236605 | Q4: =SUM(OFFSET(Tabelle2!$C$1:$D$1,$K4-1+108,0))-SUM(OFFSET(Tabelle2!$C$1:$D$1,$K4-1+90,0)) -> 236693 | R4: =L4/AVERAGE($L$3:$Q$3) -> 100% | S4: =M4/AVERAGE($L$3:$Q$3) -> 100% | T4: =N4/AVERAGE($L$3:$Q$3) -> 100% | U4: =O4/AVERAGE($L$3:$Q$3) -> 100% | V4: =P4/AVERAGE($L$3:$Q$3) -> 100% | W4: =Q4/AVERAGE($L$3:$Q$3) -> 100%
A5: Record 1 | B5: 3.45.0 | C5: 90min mtb loop | D5: 150km elevation style | E5: empty | F5: 1s | 1m | 100m, everything off | G5: off | H5: off | I5: Dashboard with Altitude diagramm | J5: 2020-04-28T21:25:00 | K5: 273 | L5: =SUM(OFFSET(Tabelle2!$C$1:$D$1,$K5-1+18,0))-SUM(OFFSET(Tabelle2!$C$1:$D$1,$K5-1,0)) -> 242415 | M5: =SUM(OFFSET(Tabelle2!$C$1:$D$1,$K5-1+36,0))-SUM(OFFSET(Tabelle2!$C$1:$D$1,$K5-1+18,0)) -> 256931 | N5: =SUM(OFFSET(Tabelle2!$C$1:$D$1,$K5-1+54,0))-SUM(OFFSET(Tabelle2!$C$1:$D$1,$K5-1+36,0)) -> 271187 | O5: =SUM(OFFSET(Tabelle2!$C$1:$D$1,$K5-1+72,0))-SUM(OFFSET(Tabelle2!$C$1:$D$1,$K5-1+54,0)) -> 289448 | P5: =SUM(OFFSET(Tabelle2!$C$1:$D$1,$K5-1+90,0))-SUM(OFFSET(Tabelle2!$C$1:$D$1,$K5-1+72,0)) -> 307481 | Q5: =SUM(OFFSET(Tabelle2!$C$1:$D$1,$K5-1+108,0))-SUM(OFFSET(Tabelle2!$C$1:$D$1,$K5-1+90,0)) -> 325815 | R5: 102% | S5: 108% | T5: 114% | U5: 122% | V5: 130% | W5: 137% | X5: infinit cpu time raise by 7% per 90 minutes
A6: Record 2 | B6: 3.45.0 | C6: 90min mtb loop | D6: 150km elevation style | E6: empty | F6: 1s | 1m | 100m, everything off | G6: off | H6: off | I6: Dashboard with Altitude diagramm | J6: 2020-04-29T16:15:00 | K6: 499 | L6: =SUM(OFFSET(Tabelle2!$C$1:$D$1,$K6-1+18,0))-SUM(OFFSET(Tabelle2!$C$1:$D$1,$K6-1,0)) -> 244251 | M6: =SUM(OFFSET(Tabelle2!$C$1:$D$1,$K6-1+36,0))-SUM(OFFSET(Tabelle2!$C$1:$D$1,$K6-1+18,0)) -> 259809 | N6: =SUM(OFFSET(Tabelle2!$C$1:$D$1,$K6-1+54,0))-SUM(OFFSET(Tabelle2!$C$1:$D$1,$K6-1+36,0)) -> 271384 | O6: =SUM(OFFSET(Tabelle2!$C$1:$D$1,$K6-1+72,0))-SUM(OFFSET(Tabelle2!$C$1:$D$1,$K6-1+54,0)) -> 291662 | P6: =SUM(OFFSET(Tabelle2!$C$1:$D$1,$K6-1+90,0))-SUM(OFFSET(Tabelle2!$C$1:$D$1,$K6-1+72,0)) -> 308909 | Q6: =SUM(OFFSET(Tabelle2!$C$1:$D$1,$K6-1+108,0))-SUM(OFFSET(Tabelle2!$C$1:$D$1,$K6-1+90,0)) -> 329202 | R6: 103% | S6: 110% | T6: 114% | U6: 123% | V6: 130% | W6: 139% | X6: infinit cpu time raise by 7% per 90 minutes
A7: Navigation 1 | B7: 3.45.0 | C7: 90min mtb loop | D7: 150km elevation style | E7: empty | F7: off | G7: Guidance 150km | H7: off | I7: Dashboard with Altitude diagramm | J7: 2020-04-30T01:20:00 | K7: 608 | L7: =SUM(OFFSET(Tabelle2!$C$1:$D$1,$K7-1+18,0))-SUM(OFFSET(Tabelle2!$C$1:$D$1,$K7-1,0)) -> 252449 | M7: =SUM(OFFSET(Tabelle2!$C$1:$D$1,$K7-1+36,0))-SUM(OFFSET(Tabelle2!$C$1:$D$1,$K7-1+18,0)) -> 276213 | N7: =SUM(OFFSET(Tabelle2!$C$1:$D$1,$K7-1+54,0))-SUM(OFFSET(Tabelle2!$C$1:$D$1,$K7-1+36,0)) -> 275446 | O7: =SUM(OFFSET(Tabelle2!$C$1:$D$1,$K7-1+72,0))-SUM(OFFSET(Tabelle2!$C$1:$D$1,$K7-1+54,0)) -> 277814 | P7: =SUM(OFFSET(Tabelle2!$C$1:$D$1,$K7-1+90,0))-SUM(OFFSET(Tabelle2!$C$1:$D$1,$K7-1+72,0)) -> 274921 | Q7: =SUM(OFFSET(Tabelle2!$C$1:$D$1,$K7-1+108,0))-SUM(OFFSET(Tabelle2!$C$1:$D$1,$K7-1+90,0)) -> 271160 | R7: 107% | S7: 117% | T7: 116% | U7: 117% | V7: 116% | W7: 114% | X7: +7% for nearby point, +16% for next point is 30 to 90minutes away
A8: Navigation 2 | B8: 3.45.0 | C8: 90min mtb loop | D8: 150km elevation style | E8: empty | F8: off | G8: Guidance 150km | H8: off | I8: Dashboard with Altitude diagramm | J8: 2020-04-30T10:30:00 | K8: 718 | L8: =SUM(OFFSET(Tabelle2!$C$1:$D$1,$K8-1+18,0))-SUM(OFFSET(Tabelle2!$C$1:$D$1,$K8-1,0)) -> 243977 | M8: =SUM(OFFSET(Tabelle2!$C$1:$D$1,$K8-1+36,0))-SUM(OFFSET(Tabelle2!$C$1:$D$1,$K8-1+18,0)) -> 263455 | N8: =SUM(OFFSET(Tabelle2!$C$1:$D$1,$K8-1+54,0))-SUM(OFFSET(Tabelle2!$C$1:$D$1,$K8-1+36,0)) -> 268105 | R8: =L8/AVERAGE($L$3:$Q$3) -> 103% | S8: =M8/AVERAGE($L$3:$Q$3) -> 111% | T8: 113% | X8: Not sure about this data, maybe I did some thing wrong, does not match to navigation 1 and 3
A9: Baseline 3 copie | B9: 3.45.0 | C9: 90min mtb loop | D9: 150km elevation style | E9: empty | F9: off | G9: off | H9: off | I9: Map, GPS center, 300m zoom | J9: 2020-04-30T23:05:00 | K9: 869 | L9: =SUM(OFFSET(Tabelle2!$C$1:$D$1,$K9-1+18,0))-SUM(OFFSET(Tabelle2!$C$1:$D$1,$K9-1,0)) -> 214703 | M9: =SUM(OFFSET(Tabelle2!$C$1:$D$1,$K9-1+36,0))-SUM(OFFSET(Tabelle2!$C$1:$D$1,$K9-1+18,0)) -> 214878 | N9: =SUM(OFFSET(Tabelle2!$C$1:$D$1,$K9-1+54,0))-SUM(OFFSET(Tabelle2!$C$1:$D$1,$K9-1+36,0)) -> 215127 | O9: =SUM(OFFSET(Tabelle2!$C$1:$D$1,$K9-1+72,0))-SUM(OFFSET(Tabelle2!$C$1:$D$1,$K9-1+54,0)) -> 214716 | P9: =SUM(OFFSET(Tabelle2!$C$1:$D$1,$K9-1+90,0))-SUM(OFFSET(Tabelle2!$C$1:$D$1,$K9-1+72,0)) -> 214876 | Q9: =SUM(OFFSET(Tabelle2!$C$1:$D$1,$K9-1+108,0))-SUM(OFFSET(Tabelle2!$C$1:$D$1,$K9-1+90,0)) -> 214929 | R9: =L9/AVERAGE($L$3:$Q$3) -> 91% | S9: 91% | T9: 91% | U9: 91% | V9: 91% | W9: 91% | X9: Baseline 3 vs Baseline 1 Dashboard is taking 9% cpu time!
A12: Baseline 3 | B12: 3.45.0 | C12: 90min mtb loop | D12: 150km elevation style | E12: empty | F12: off | G12: off | H12: off | I12: Map, GPS center, 300m zoom | J12: 2020-04-30T23:05:00 | K12: 869 | L12: =SUM(OFFSET(Tabelle2!$C$1:$D$1,$K12-1+18,0))-SUM(OFFSET(Tabelle2!$C$1:$D$1,$K12-1,0)) -> 214703 | M12: =SUM(OFFSET(Tabelle2!$C$1:$D$1,$K12-1+36,0))-SUM(OFFSET(Tabelle2!$C$1:$D$1,$K12-1+18,0)) -> 214878 | N12: =SUM(OFFSET(Tabelle2!$C$1:$D$1,$K12-1+54,0))-SUM(OFFSET(Tabelle2!$C$1:$D$1,$K12-1+36,0)) -> 215127 | O12: =SUM(OFFSET(Tabelle2!$C$1:$D$1,$K12-1+72,0))-SUM(OFFSET(Tabelle2!$C$1:$D$1,$K12-1+54,0)) -> 214716 | P12: =SUM(OFFSET(Tabelle2!$C$1:$D$1,$K12-1+90,0))-SUM(OFFSET(Tabelle2!$C$1:$D$1,$K12-1+72,0)) -> 214876 | Q12: =SUM(OFFSET(Tabelle2!$C$1:$D$1,$K12-1+108,0))-SUM(OFFSET(Tabelle2!$C$1:$D$1,$K12-1+90,0)) -> 214929 | R12: =L12/AVERAGE($L$12:$Q$12) -> 100% | S12: =M12/AVERAGE($L$12:$Q$12) -> 100% | T12: 100% | U12: 100% | V12: 100% | W12: 100% | X12: new baseline for tests without dashboard
A13: Navigation 3 | B13: 3.45.0 | C13: 90min mtb loop | D13: 150km elevation style | E13: empty | F13: off | G13: Guidance 150km | H13: off | I13: Map, GPS center, 300m zoom | J13: 2020-04-30T15:15:00 | K13: 775 | L13: =SUM(OFFSET(Tabelle2!$C$1:$D$1,$K13-1+18,0))-SUM(OFFSET(Tabelle2!$C$1:$D$1,$K13-1,0)) -> 227668 | M13: =SUM(OFFSET(Tabelle2!$C$1:$D$1,$K13-1+36,0))-SUM(OFFSET(Tabelle2!$C$1:$D$1,$K13-1+18,0)) -> 235911 | N13: =SUM(OFFSET(Tabelle2!$C$1:$D$1,$K13-1+54,0))-SUM(OFFSET(Tabelle2!$C$1:$D$1,$K13-1+36,0)) -> 247581 | R13: =L13/AVERAGE($L$12:$Q$12) -> 106% | S13: =M13/AVERAGE($L$12:$Q$12) -> 110% | T13: =N13/AVERAGE($L$12:$Q$12) -> 115% | U13: =O13/AVERAGE($L$12:$Q$12) -> 0% | V13: =P13/AVERAGE($L$12:$Q$12) -> 0% | W13: =Q13/AVERAGE($L$12:$Q$12) -> 0% | X13: same result as Navigation 1 +6% for nearby point, +15% for next point, wrong 2nd value because of reset navigation
A14: Record 3 | B14: 3.45.0 | C14: 90min mtb loop | D14: 150km elevation style | E14: empty | F14: 1s | 1m | 100m, everything off | G14: off | H14: off | I14: Map, GPS center, 300m zoom | J14: 2020-04-30T19:50:00 | K14: 830 | L14: =SUM(OFFSET(Tabelle2!$C$1:$D$1,$K14-1+18,0))-SUM(OFFSET(Tabelle2!$C$1:$D$1,$K14-1,0)) -> 233680 | M14: =SUM(OFFSET(Tabelle2!$C$1:$D$1,$K14-1+36,0))-SUM(OFFSET(Tabelle2!$C$1:$D$1,$K14-1+18,0)) -> 246810 | R14: 109% | S14: 115% | T14: 0% | U14: 0% | V14: 0% | W14: 0% | X14: same result as record 2, infinit cpu time raise by 6% per 90 minutes
A15: Record 4 | B15: 3.45.0 | C15: 90min mtb loop | D15: 150km elevation style | E15: empty | F15: only 1000, 1s | 1m | 100m, everything off | G15: off | H15: off | I15: Map, GPS center, 300m zoom | J15: 2020-05-01T08:15:00 | K15: 979 | L15: =SUM(OFFSET(Tabelle2!$C$1:$D$1,$K15-1+18,0))-SUM(OFFSET(Tabelle2!$C$1:$D$1,$K15-1,0)) -> 228751 | M15: =SUM(OFFSET(Tabelle2!$C$1:$D$1,$K15-1+36,0))-SUM(OFFSET(Tabelle2!$C$1:$D$1,$K15-1+18,0)) -> 247028 | N15: =SUM(OFFSET(Tabelle2!$C$1:$D$1,$K15-1+54,0))-SUM(OFFSET(Tabelle2!$C$1:$D$1,$K15-1+36,0)) -> 260827 | O15: =SUM(OFFSET(Tabelle2!$C$1:$D$1,$K15-1+72,0))-SUM(OFFSET(Tabelle2!$C$1:$D$1,$K15-1+54,0)) -> 276060 | P15: =SUM(OFFSET(Tabelle2!$C$1:$D$1,$K15-1+90,0))-SUM(OFFSET(Tabelle2!$C$1:$D$1,$K15-1+72,0)) -> 293429 | Q15: =SUM(OFFSET(Tabelle2!$C$1:$D$1,$K15-1+108,0))-SUM(OFFSET(Tabelle2!$C$1:$D$1,$K15-1+90,0)) -> 313960 | R15: 106% | S15: 115% | T15: 121% | U15: 128% | V15: 137% | W15: 146% | X15: same result as record 2, infinit cpu time raise by 7% per 90 minutes
A16: Vectormap 1 | B16: 3.45.0 | C16: 90min mtb loop | D16: 150km elevation style | E16: V3 androMTB | F16: off | G16: off | H16: off | I16: Map, GPS center, 300m zoom | J16: 2020-05-01T18:45:00 | K16: 1105 | L16: =SUM(OFFSET(Tabelle2!$C$1:$D$1,$K16-1+18,0))-SUM(OFFSET(Tabelle2!$C$1:$D$1,$K16-1,0)) -> 213099 | M16: =SUM(OFFSET(Tabelle2!$C$1:$D$1,$K16-1+36,0))-SUM(OFFSET(Tabelle2!$C$1:$D$1,$K16-1+18,0)) -> 213752 | N16: =SUM(OFFSET(Tabelle2!$C$1:$D$1,$K16-1+54,0))-SUM(OFFSET(Tabelle2!$C$1:$D$1,$K16-1+36,0)) -> 213575 | O16: =SUM(OFFSET(Tabelle2!$C$1:$D$1,$K16-1+72,0))-SUM(OFFSET(Tabelle2!$C$1:$D$1,$K16-1+54,0)) -> 213201 | R16: =L16/AVERAGE($L$12:$Q$12) -> 99% | S16: =M16/AVERAGE($L$12:$Q$12) -> 99% | T16: =N16/AVERAGE($L$12:$Q$12) -> 99% | U16: =O16/AVERAGE($L$12:$Q$12) -> 99% | V16: =P16/AVERAGE($L$12:$Q$12) -> 0% | W16: =Q16/AVERAGE($L$12:$Q$12) -> 0% | X16: Vector map is basically free, even less cpu cycles then empty map
A17: No GPS 1 | B17: 3.45.0 | C17: off, disabled in gps screen | D17: 150km elevation style | E17: empty | F17: off | G17: off | H17: off | I17: Map, 300m zoom | J17: 2020-05-02T00:50:00 | K17: 1178 | L17: =SUM(OFFSET(Tabelle2!$C$1:$D$1,$K17-1+18,0))-SUM(OFFSET(Tabelle2!$C$1:$D$1,$K17-1,0)) -> 33043 | M17: =SUM(OFFSET(Tabelle2!$C$1:$D$1,$K17-1+36,0))-SUM(OFFSET(Tabelle2!$C$1:$D$1,$K17-1+18,0)) -> 33078 | N17: =SUM(OFFSET(Tabelle2!$C$1:$D$1,$K17-1+54,0))-SUM(OFFSET(Tabelle2!$C$1:$D$1,$K17-1+36,0)) -> 33051 | O17: =SUM(OFFSET(Tabelle2!$C$1:$D$1,$K17-1+72,0))-SUM(OFFSET(Tabelle2!$C$1:$D$1,$K17-1+54,0)) -> 33074 | P17: =SUM(OFFSET(Tabelle2!$C$1:$D$1,$K17-1+90,0))-SUM(OFFSET(Tabelle2!$C$1:$D$1,$K17-1+72,0)) -> 33058 | Q17: =SUM(OFFSET(Tabelle2!$C$1:$D$1,$K17-1+108,0))-SUM(OFFSET(Tabelle2!$C$1:$D$1,$K17-1+90,0)) -> 33070 | R17: =L17/AVERAGE($L$12:$Q$12) -> 15% | S17: =M17/AVERAGE($L$12:$Q$12) -> 15% | T17: =N17/AVERAGE($L$12:$Q$12) -> 15% | U17: =O17/AVERAGE($L$12:$Q$12) -> 15% | V17: =P17/AVERAGE($L$12:$Q$12) -> 15% | W17: =Q17/AVERAGE($L$12:$Q$12) -> 15% | X17: GPS Processing (simulation) does use 85% of cpu time
A18: Empty Dash 1 | B18: 3.45.0 | C18: 90min mtb loop | D18: 150km elevation style | E18: empty | F18: off | G18: off | H18: off | I18: Empty Dashboard, Map, GPS center, 300m zoom | J18: 2020-05-02T10:10:00 | K18: 1290 | L18: =SUM(OFFSET(Tabelle2!$C$1:$D$1,$K18-1+18,0))-SUM(OFFSET(Tabelle2!$C$1:$D$1,$K18-1,0)) -> 213990 | M18: =SUM(OFFSET(Tabelle2!$C$1:$D$1,$K18-1+36,0))-SUM(OFFSET(Tabelle2!$C$1:$D$1,$K18-1+18,0)) -> 215359 | N18: =SUM(OFFSET(Tabelle2!$C$1:$D$1,$K18-1+54,0))-SUM(OFFSET(Tabelle2!$C$1:$D$1,$K18-1+36,0)) -> 215553 | O18: =SUM(OFFSET(Tabelle2!$C$1:$D$1,$K18-1+72,0))-SUM(OFFSET(Tabelle2!$C$1:$D$1,$K18-1+54,0)) -> 215883 | R18: 100% | S18: 100% | T18: 100% | U18: 100% | V18: 0% | W18: 0% | X18: Dashboard with time only has no differenz
A19: Simple Dash 1 | B19: 3.45.0 | C19: 90min mtb loop | D19: 150km elevation style | E19: empty | F19: off | G19: off | H19: off | I19: Simple Dashboard (Slope,speed,battery), Map, GPS center, 300m zoom | J19: 2020-05-02T19:30:00 | K19: 1402 | L19: =SUM(OFFSET(Tabelle2!$C$1:$D$1,$K19-1+18,0))-SUM(OFFSET(Tabelle2!$C$1:$D$1,$K19-1,0)) -> 217245 | M19: =SUM(OFFSET(Tabelle2!$C$1:$D$1,$K19-1+36,0))-SUM(OFFSET(Tabelle2!$C$1:$D$1,$K19-1+18,0)) -> 217315 | R19: =L19/AVERAGE($L$12:$Q$12) -> 101% | S19: =M19/AVERAGE($L$12:$Q$12) -> 101% | T19: =N19/AVERAGE($L$12:$Q$12) -> 0% | U19: =O19/AVERAGE($L$12:$Q$12) -> 0% | V19: =P19/AVERAGE($L$12:$Q$12) -> 0% | W19: =Q19/AVERAGE($L$12:$Q$12) -> 0%
A20: Advanced Dash 1 | B20: 3.45.0 | C20: 90min mtb loop | D20: 150km elevation style | E20: empty | F20: off | G20: off | H20: off | I20: advanced Dashboard (Slope,speed,battery, guide target, recording uphill), Map, GPS center, 300m zoom | J20: 2020-05-02T22:35:00 | K20: 1439 | L20: =SUM(OFFSET(Tabelle2!$C$1:$D$1,$K20-1+18,0))-SUM(OFFSET(Tabelle2!$C$1:$D$1,$K20-1,0)) -> 220531 | R20: =L20/AVERAGE($L$12:$Q$12) -> 103% | S20: =M20/AVERAGE($L$12:$Q$12) -> 0% | T20: =N20/AVERAGE($L$12:$Q$12) -> 0% | U20: =O20/AVERAGE($L$12:$Q$12) -> 0% | V20: =P20/AVERAGE($L$12:$Q$12) -> 0% | W20: =Q20/AVERAGE($L$12:$Q$12) -> 0% | X20: 3% for 5 values
A21: Full Dash 1 | B21: 3.45.0 | C21: 90min mtb loop | D21: 150km elevation style | E21: empty | F21: off | G21: off | H21: off | I21: advanced Dashboard (Slope,speed,battery, guide target, recording uphill, elevation chart), Map, GPS center, 300m zoom | J21: 2020-04-27T19:55:00 | K21: 122 | L21: =SUM(OFFSET(Tabelle2!$C$1:$D$1,$K21-1+18,0))-SUM(OFFSET(Tabelle2!$C$1:$D$1,$K21-1,0)) -> 237431 | M21: =SUM(OFFSET(Tabelle2!$C$1:$D$1,$K21-1+36,0))-SUM(OFFSET(Tabelle2!$C$1:$D$1,$K21-1+18,0)) -> 237104 | N21: =SUM(OFFSET(Tabelle2!$C$1:$D$1,$K21-1+54,0))-SUM(OFFSET(Tabelle2!$C$1:$D$1,$K21-1+36,0)) -> 236921 | O21: =SUM(OFFSET(Tabelle2!$C$1:$D$1,$K21-1+72,0))-SUM(OFFSET(Tabelle2!$C$1:$D$1,$K21-1+54,0)) -> 237267 | P21: =SUM(OFFSET(Tabelle2!$C$1:$D$1,$K21-1+90,0))-SUM(OFFSET(Tabelle2!$C$1:$D$1,$K21-1+72,0)) -> 236777 | Q21: =SUM(OFFSET(Tabelle2!$C$1:$D$1,$K21-1+108,0))-SUM(OFFSET(Tabelle2!$C$1:$D$1,$K21-1+90,0)) -> 236681 | R21: =L21/AVERAGE($L$12:$Q$12) -> 110% | S21: =M21/AVERAGE($L$12:$Q$12) -> 110% | T21: =N21/AVERAGE($L$12:$Q$12) -> 110% | U21: =O21/AVERAGE($L$12:$Q$12) -> 110% | V21: =P21/AVERAGE($L$12:$Q$12) -> 110% | W21: =Q21/AVERAGE($L$12:$Q$12) -> 110% | X21: 7% for elevation chart + 3% for 5 values
A22: stay in place 1 | B22: 3.45.0 | C22: stay from real GPS | D22: 150km elevation style | E22: empty | F22: off | G22: off | H22: off | I22: Map, GPS center, 300m zoom | J22: 2020-05-03T00:15:00 | K22: 1459 | L22: =SUM(OFFSET(Tabelle2!$C$1:$D$1,$K22-1+18,0))-SUM(OFFSET(Tabelle2!$C$1:$D$1,$K22-1,0)) -> 199750 | M22: =SUM(OFFSET(Tabelle2!$C$1:$D$1,$K22-1+36,0))-SUM(OFFSET(Tabelle2!$C$1:$D$1,$K22-1+18,0)) -> 202268 | N22: =SUM(OFFSET(Tabelle2!$C$1:$D$1,$K22-1+54,0))-SUM(OFFSET(Tabelle2!$C$1:$D$1,$K22-1+36,0)) -> 202299 | O22: =SUM(OFFSET(Tabelle2!$C$1:$D$1,$K22-1+72,0))-SUM(OFFSET(Tabelle2!$C$1:$D$1,$K22-1+54,0)) -> 202183 | P22: =SUM(OFFSET(Tabelle2!$C$1:$D$1,$K22-1+90,0))-SUM(OFFSET(Tabelle2!$C$1:$D$1,$K22-1+72,0)) -> 202428 | Q22: =SUM(OFFSET(Tabelle2!$C$1:$D$1,$K22-1+108,0))-SUM(OFFSET(Tabelle2!$C$1:$D$1,$K22-1+90,0)) -> 202368 | R22: =L22/AVERAGE($L$12:$Q$12) -> 93% | S22: =M22/AVERAGE($L$12:$Q$12) -> 94% | T22: =N22/AVERAGE($L$12:$Q$12) -> 94% | U22: =O22/AVERAGE($L$12:$Q$12) -> 94% | V22: =P22/AVERAGE($L$12:$Q$12) -> 94% | W22: =Q22/AVERAGE($L$12:$Q$12) -> 94%
A23: No Map Tools 1 | B23: 3.45.0 | C23: 90min mtb loop | D23: 150km elevation style | E23: empty | F23: off | G23: off | H23: off | I23: Map, GPS center, 300m zoom | J23: 2020-05-02T16:25:00 | K23: 1365 | L23: =SUM(OFFSET(Tabelle2!$C$1:$D$1,$K23-1+18,0))-SUM(OFFSET(Tabelle2!$C$1:$D$1,$K23-1,0)) -> 207785 | M23: =SUM(OFFSET(Tabelle2!$C$1:$D$1,$K23-1+36,0))-SUM(OFFSET(Tabelle2!$C$1:$D$1,$K23-1+18,0)) -> 208310 | R23: 97% | S23: 97% | T23: 0% | U23: 0% | V23: 0% | W23: 0% | X23: 3% for Elevation Tool
A24: only distance Tool 1 | B24: 3.45.0 | C24: 90min mtb loop | D24: 150km elevation style | E24: V3 androMTB | F24: off | G24: off | H24: off | I24: Map, GPS center, 300m zoom | J24: 2020-05-03T09:30:00 | K24: 1570 | L24: =SUM(OFFSET(Tabelle2!$C$1:$D$1,$K24-1+18,0))-SUM(OFFSET(Tabelle2!$C$1:$D$1,$K24-1,0)) -> 218216 | M24: =SUM(OFFSET(Tabelle2!$C$1:$D$1,$K24-1+36,0))-SUM(OFFSET(Tabelle2!$C$1:$D$1,$K24-1+18,0)) -> 217597 | R24: =L24/AVERAGE($L$12:$Q$12) -> 102% | S24: =M24/AVERAGE($L$12:$Q$12) -> 101% | T24: =N24/AVERAGE($L$12:$Q$12) -> 0% | U24: =O24/AVERAGE($L$12:$Q$12) -> 0% | V24: =P24/AVERAGE($L$12:$Q$12) -> 0% | W24: =Q24/AVERAGE($L$12:$Q$12) -> 0%
A25: only distance Tool 2 | B25: 3.45.0 | C25: 90min mtb loop | D25: 150km elevation style | E25: empty | F25: off | G25: off | H25: off | I25: Map, GPS center, 300m zoom | J25: 2020-05-03T12:35:00 | K25: 1607 | L25: =SUM(OFFSET(Tabelle2!$C$1:$D$1,$K25-1+18,0))-SUM(OFFSET(Tabelle2!$C$1:$D$1,$K25-1,0)) -> 207715 | M25: =SUM(OFFSET(Tabelle2!$C$1:$D$1,$K25-1+36,0))-SUM(OFFSET(Tabelle2!$C$1:$D$1,$K25-1+18,0)) -> 208030 | R25: =L25/AVERAGE($L$12:$Q$12) -> 97% | S25: =M25/AVERAGE($L$12:$Q$12) -> 97% | T25: =N25/AVERAGE($L$12:$Q$12) -> 0% | U25: =O25/AVERAGE($L$12:$Q$12) -> 0% | V25: =P25/AVERAGE($L$12:$Q$12) -> 0% | W25: =Q25/AVERAGE($L$12:$Q$12) -> 0%
A26: Less GPS Data 1s 1 | B26: 3.45.0 | C26: GPRMC, GPGGA, 90min mtb loop, minimum Data 1s | D26: 150km elevation style | E26: empty | F26: off | G26: off | H26: off | I26: Map, GPS center, 300m zoom | J26: 2020-05-03T15:40:00 | K26: 1644 | L26: =SUM(OFFSET(Tabelle2!$C$1:$D$1,$K26-1+18,0))-SUM(OFFSET(Tabelle2!$C$1:$D$1,$K26-1,0)) -> 138732 | M26: =SUM(OFFSET(Tabelle2!$C$1:$D$1,$K26-1+36,0))-SUM(OFFSET(Tabelle2!$C$1:$D$1,$K26-1+18,0)) -> 141367 | N26: =SUM(OFFSET(Tabelle2!$C$1:$D$1,$K26-1+54,0))-SUM(OFFSET(Tabelle2!$C$1:$D$1,$K26-1+36,0)) -> 141271 | O26: =SUM(OFFSET(Tabelle2!$C$1:$D$1,$K26-1+72,0))-SUM(OFFSET(Tabelle2!$C$1:$D$1,$K26-1+54,0)) -> 139297 | R26: =L26/AVERAGE($L$12:$Q$12) -> 65% | S26: =M26/AVERAGE($L$12:$Q$12) -> 66% | T26: =N26/AVERAGE($L$12:$Q$12) -> 66% | U26: =O26/AVERAGE($L$12:$Q$12) -> 65% | V26: =P26/AVERAGE($L$12:$Q$12) -> 0% | W26: =Q26/AVERAGE($L$12:$Q$12) -> 0%
A27: Less GPS Data 1s 2 | B27: 3.45.0 | C27: GPRMC, GPGGA, 90min mtb loop, minimum Data 1s | D27: 150km elevation style | E27: empty | F27: off | G27: off | H27: off | I27: Map, GPS center, 300m zoom | J27: 2020-05-03T23:45:00 | K27: 1741 | L27: =SUM(OFFSET(Tabelle2!$C$1:$D$1,$K27-1+18,0))-SUM(OFFSET(Tabelle2!$C$1:$D$1,$K27-1,0)) -> 145922 | M27: =SUM(OFFSET(Tabelle2!$C$1:$D$1,$K27-1+36,0))-SUM(OFFSET(Tabelle2!$C$1:$D$1,$K27-1+18,0)) -> 145864 | N27: =SUM(OFFSET(Tabelle2!$C$1:$D$1,$K27-1+54,0))-SUM(OFFSET(Tabelle2!$C$1:$D$1,$K27-1+36,0)) -> 146285 | O27: =SUM(OFFSET(Tabelle2!$C$1:$D$1,$K27-1+72,0))-SUM(OFFSET(Tabelle2!$C$1:$D$1,$K27-1+54,0)) -> 146128 | R27: =L27/AVERAGE($L$12:$Q$12) -> 68% | S27: =M27/AVERAGE($L$12:$Q$12) -> 68% | T27: =N27/AVERAGE($L$12:$Q$12) -> 68% | U27: =O27/AVERAGE($L$12:$Q$12) -> 68% | V27: =P27/AVERAGE($L$12:$Q$12) -> 0% | W27: =Q27/AVERAGE($L$12:$Q$12) -> 0% | X27: 32% for simulation of: empty lines + GPGNS + PGRMF (12%+10%+10%), 52% GPS Processing total
A28: Less GPS Data 2s 1 | B28: 3.45.0 | C28: GPRMC, GPGGA, 90min mtb loop, minimum Data 2s | D28: 150km elevation style | E28: empty | F28: off | G28: off | H28: off | I28: Map, GPS center, 300m zoom | J28: 2020-05-03T21:50:00 | K28: 1718 | L28: =SUM(OFFSET(Tabelle2!$C$1:$D$1,$K28-1+18,0))-SUM(OFFSET(Tabelle2!$C$1:$D$1,$K28-1,0)) -> 141490 | R28: =L28/AVERAGE($L$12:$Q$12) -> 66% | S28: =M28/AVERAGE($L$12:$Q$12) -> 0% | T28: =N28/AVERAGE($L$12:$Q$12) -> 0% | U28: =O28/AVERAGE($L$12:$Q$12) -> 0% | V28: =P28/AVERAGE($L$12:$Q$12) -> 0% | W28: =Q28/AVERAGE($L$12:$Q$12) -> 0%
A29: No Empty GPS Lines 1 | B29: 3.45.0 | C29: GPRMC, GPGGA, GPGNS, PGRMF, no Empty Lines, 90min mtb loop | D29: 150km elevation style | E29: empty | F29: off | G29: off | H29: off | I29: Map, GPS center, 300m zoom | J29: 2020-05-04T06:55:00 | K29: 1827 | L29: =SUM(OFFSET(Tabelle2!$C$1:$D$1,$K29-1+18,0))-SUM(OFFSET(Tabelle2!$C$1:$D$1,$K29-1,0)) -> 186206 | R29: =L29/AVERAGE($L$12:$Q$12) -> 87% | S29: =M29/AVERAGE($L$12:$Q$12) -> 0% | T29: =N29/AVERAGE($L$12:$Q$12) -> 0% | U29: =O29/AVERAGE($L$12:$Q$12) -> 0% | V29: =P29/AVERAGE($L$12:$Q$12) -> 0% | W29: =Q29/AVERAGE($L$12:$Q$12) -> 0% | X29: 12% for empty line Simulation
A30: No Empty GPS Lines 2 | B30: 3.45.0 | C30: GPRMC, GPGGA, GPGNS, PGRMF, no Empty Lines, 90min mtb loop | D30: 150km elevation style | E30: empty | F30: off | G30: off | H30: off | I30: Map, GPS center, 300m zoom | J30: 2020-05-04T15:35:00 | K30: 1931 | L30: =SUM(OFFSET(Tabelle2!$C$1:$D$1,$K30-1+18,0))-SUM(OFFSET(Tabelle2!$C$1:$D$1,$K30-1,0)) -> 188516 | M30: =SUM(OFFSET(Tabelle2!$C$1:$D$1,$K30-1+36,0))-SUM(OFFSET(Tabelle2!$C$1:$D$1,$K30-1+18,0)) -> 188356 | R30: =L30/AVERAGE($L$12:$Q$12) -> 88% | S30: =M30/AVERAGE($L$12:$Q$12) -> 88% | T30: =N30/AVERAGE($L$12:$Q$12) -> 0% | U30: =O30/AVERAGE($L$12:$Q$12) -> 0% | V30: =P30/AVERAGE($L$12:$Q$12) -> 0% | W30: =Q30/AVERAGE($L$12:$Q$12) -> 0% | X30: 12% for empty line Simulation
A31: No GPGNS 1 | B31: 3.45.0 | C31: GPRMC, GPGGA, GPGNS, PGRMF, no Empty Lines, 90min mtb loop | D31: 150km elevation style | E31: empty | F31: off | G31: off | H31: off | I31: Map, GPS center, 300m zoom | J31: 2020-05-04T08:40:00 | K31: 1848 | L31: =SUM(OFFSET(Tabelle2!$C$1:$D$1,$K31-1+18,0))-SUM(OFFSET(Tabelle2!$C$1:$D$1,$K31-1,0)) -> 169047 | M31: =SUM(OFFSET(Tabelle2!$C$1:$D$1,$K31-1+36,0))-SUM(OFFSET(Tabelle2!$C$1:$D$1,$K31-1+18,0)) -> 167863 | R31: =L31/AVERAGE($L$12:$Q$12) -> 79% | S31: =M31/AVERAGE($L$12:$Q$12) -> 78% | T31: =N31/AVERAGE($L$12:$Q$12) -> 0% | U31: =O31/AVERAGE($L$12:$Q$12) -> 0% | V31: =P31/AVERAGE($L$12:$Q$12) -> 0% | W31: =Q31/AVERAGE($L$12:$Q$12) -> 0% | X31: 10% for GPGNS Simulation
A32: No GPGNS 2 | B32: 3.45.0 | C32: GPRMC, GPGGA, GPGNS, PGRMF, no Empty Lines, 90min mtb loop | D32: 150km elevation style | E32: empty | F32: off | G32: off | H32: off | I32: Map, GPS center, 300m zoom | J32: 2020-05-05T14:10:00 | K32: 2200 | L32: =SUM(OFFSET(Tabelle2!$C$1:$D$1,$K32-1+18,0))-SUM(OFFSET(Tabelle2!$C$1:$D$1,$K32-1,0)) -> 162069 | R32: =L32/AVERAGE($L$12:$Q$12) -> 75% | S32: =M32/AVERAGE($L$12:$Q$12) -> 0% | T32: =N32/AVERAGE($L$12:$Q$12) -> 0% | U32: =O32/AVERAGE($L$12:$Q$12) -> 0% | V32: =P32/AVERAGE($L$12:$Q$12) -> 0% | W32: =Q32/AVERAGE($L$12:$Q$12) -> 0%
A33: No PGRMF 1 | B33: 3.45.0 | C33: GPRMC, GPGGA, GPGNS, PGRMF, no Empty Lines, 90min mtb loop | D33: 150km elevation style | E33: empty | F33: off | G33: off | H33: off | I33: Map, GPS center, 300m zoom | J33: 2020-05-04T12:30:00 | K33: 1894 | L33: =SUM(OFFSET(Tabelle2!$C$1:$D$1,$K33-1+18,0))-SUM(OFFSET(Tabelle2!$C$1:$D$1,$K33-1,0)) -> 172884 | M33: =SUM(OFFSET(Tabelle2!$C$1:$D$1,$K33-1+36,0))-SUM(OFFSET(Tabelle2!$C$1:$D$1,$K33-1+18,0)) -> 174583 | R33: =L33/AVERAGE($L$12:$Q$12) -> 80% | S33: =M33/AVERAGE($L$12:$Q$12) -> 81% | T33: =N33/AVERAGE($L$12:$Q$12) -> 0% | U33: =O33/AVERAGE($L$12:$Q$12) -> 0% | V33: =P33/AVERAGE($L$12:$Q$12) -> 0% | W33: =Q33/AVERAGE($L$12:$Q$12) -> 0%
A34: No PGRMF 2 | B34: 3.45.0 | C34: GPRMC, GPGGA, GPGNS, PGRMF, no Empty Lines, 90min mtb loop | D34: 150km elevation style | E34: empty | F34: off | G34: off | H34: off | I34: Map, GPS center, 300m zoom | J34: 2020-05-04T19:40:00 | K34: 1980 | L34: =SUM(OFFSET(Tabelle2!$C$1:$D$1,$K34-1+18,0))-SUM(OFFSET(Tabelle2!$C$1:$D$1,$K34-1,0)) -> 167671 | R34: =L34/AVERAGE($L$12:$Q$12) -> 78% | S34: =M34/AVERAGE($L$12:$Q$12) -> 0% | T34: =N34/AVERAGE($L$12:$Q$12) -> 0% | U34: =O34/AVERAGE($L$12:$Q$12) -> 0% | V34: =P34/AVERAGE($L$12:$Q$12) -> 0% | W34: =Q34/AVERAGE($L$12:$Q$12) -> 0% | X34: 10% for PGRMF Simulation
A35: BTGPS full | B35: 3.45.0 | C35: RMC, GGA, GSV, GSA | D35: 150km elevation style | E35: empty | F35: off | G35: off | H35: off | I35: Map, GPS center, 300m zoom | J35: 2020-05-04T21:15:00 | K35: 1999 | L35: =SUM(OFFSET(Tabelle2!$C$1:$D$1,$K35-1+18,0))-SUM(OFFSET(Tabelle2!$C$1:$D$1,$K35-1,0)) -> 91549 | M35: =SUM(OFFSET(Tabelle2!$C$1:$D$1,$K35-1+36,0))-SUM(OFFSET(Tabelle2!$C$1:$D$1,$K35-1+18,0)) -> 92602 | N35: =SUM(OFFSET(Tabelle2!$C$1:$D$1,$K35-1+54,0))-SUM(OFFSET(Tabelle2!$C$1:$D$1,$K35-1+36,0)) -> 92729 | O35: =SUM(OFFSET(Tabelle2!$C$1:$D$1,$K35-1+72,0))-SUM(OFFSET(Tabelle2!$C$1:$D$1,$K35-1+54,0)) -> 92330 | P35: =SUM(OFFSET(Tabelle2!$C$1:$D$1,$K35-1+90,0))-SUM(OFFSET(Tabelle2!$C$1:$D$1,$K35-1+72,0)) -> 92048 | Q35: =SUM(OFFSET(Tabelle2!$C$1:$D$1,$K35-1+108,0))-SUM(OFFSET(Tabelle2!$C$1:$D$1,$K35-1+90,0)) -> 92158 | R35: =L35/AVERAGE($L$12:$Q$12) -> 43% | S35: =M35/AVERAGE($L$12:$Q$12) -> 43% | T35: =N35/AVERAGE($L$12:$Q$12) -> 43% | U35: =O35/AVERAGE($L$12:$Q$12) -> 43% | V35: =P35/AVERAGE($L$12:$Q$12) -> 43% | W35: =Q35/AVERAGE($L$12:$Q$12) -> 43% | X35: 33% GPS Processing (43% - 16% idle + 7% stay in place)
A36: BTGPS mini | B36: 3.45.0 | C36: RMC, GGA | D36: 150km elevation style | E36: empty | F36: off | G36: off | H36: off | I36: Map, GPS center, 300m zoom | J36: 2020-05-05T07:30:00 | K36: 2121 | L36: =SUM(OFFSET(Tabelle2!$C$1:$D$1,$K36-1+18,0))-SUM(OFFSET(Tabelle2!$C$1:$D$1,$K36-1,0)) -> 90619 | M36: =SUM(OFFSET(Tabelle2!$C$1:$D$1,$K36-1+36,0))-SUM(OFFSET(Tabelle2!$C$1:$D$1,$K36-1+18,0)) -> 90929 | N36: =SUM(OFFSET(Tabelle2!$C$1:$D$1,$K36-1+54,0))-SUM(OFFSET(Tabelle2!$C$1:$D$1,$K36-1+36,0)) -> 90559 | R36: =L36/AVERAGE($L$12:$Q$12) -> 42% | S36: =M36/AVERAGE($L$12:$Q$12) -> 42% | T36: =N36/AVERAGE($L$12:$Q$12) -> 42% | U36: =O36/AVERAGE($L$12:$Q$12) -> 0% | V36: =P36/AVERAGE($L$12:$Q$12) -> 0% | W36: =Q36/AVERAGE($L$12:$Q$12) -> 0% | X36: 1% for parsing GSV and GSA records
A37: stay in place 2 | B37: 3.45.0 | C37: stay exactly | D37: 150km elevation style | E37: empty | F37: off | G37: off | H37: off | I37: Map, GPS center, 300m zoom | J37: 2020-05-05T15:45:00 | K37: 2219 | L37: =SUM(OFFSET(Tabelle2!$C$1:$D$1,$K37-1+18,0))-SUM(OFFSET(Tabelle2!$C$1:$D$1,$K37-1,0)) -> 100760 | M37: =SUM(OFFSET(Tabelle2!$C$1:$D$1,$K37-1+36,0))-SUM(OFFSET(Tabelle2!$C$1:$D$1,$K37-1+18,0)) -> 102518 | N37: =SUM(OFFSET(Tabelle2!$C$1:$D$1,$K37-1+54,0))-SUM(OFFSET(Tabelle2!$C$1:$D$1,$K37-1+36,0)) -> 101750 | O37: =SUM(OFFSET(Tabelle2!$C$1:$D$1,$K37-1+72,0))-SUM(OFFSET(Tabelle2!$C$1:$D$1,$K37-1+54,0)) -> 100477 | R37: =L37/AVERAGE($L$12:$Q$12) -> 47% | S37: =M37/AVERAGE($L$12:$Q$12) -> 48% | T37: =N37/AVERAGE($L$12:$Q$12) -> 47% | U37: =O37/AVERAGE($L$12:$Q$12) -> 47% | V37: =P37/AVERAGE($L$12:$Q$12) -> 0% | W37: =Q37/AVERAGE($L$12:$Q$12) -> 0% | X37: exact stay in place, no move at all
A38: stay in place 3 | B38: 3.45.0 | C38: stay simulation from real GPS RMC, GGA | D38: 150km elevation style | E38: empty | F38: off | G38: off | H38: off | I38: Map, GPS center, 300m zoom | J38: 2020-05-05T22:10:00 | K38: 2296 | L38: =SUM(OFFSET(Tabelle2!$C$1:$D$1,$K38-1+18,0))-SUM(OFFSET(Tabelle2!$C$1:$D$1,$K38-1,0)) -> 117510 | M38: =SUM(OFFSET(Tabelle2!$C$1:$D$1,$K38-1+36,0))-SUM(OFFSET(Tabelle2!$C$1:$D$1,$K38-1+18,0)) -> 116884 | N38: =SUM(OFFSET(Tabelle2!$C$1:$D$1,$K38-1+54,0))-SUM(OFFSET(Tabelle2!$C$1:$D$1,$K38-1+36,0)) -> 116675 | O38: =SUM(OFFSET(Tabelle2!$C$1:$D$1,$K38-1+72,0))-SUM(OFFSET(Tabelle2!$C$1:$D$1,$K38-1+54,0)) -> 116892 | P38: =SUM(OFFSET(Tabelle2!$C$1:$D$1,$K38-1+90,0))-SUM(OFFSET(Tabelle2!$C$1:$D$1,$K38-1+72,0)) -> 116622 | Q38: =SUM(OFFSET(Tabelle2!$C$1:$D$1,$K38-1+108,0))-SUM(OFFSET(Tabelle2!$C$1:$D$1,$K38-1+90,0)) -> 116718 | R38: 55% | S38: 54% | T38: 54% | U38: 54% | V38: 54% | W38: 54% | X38: compare with Less GPS Data 1s 1: move vs stay in simulation is +12% (only GGA+RMC) or +7% (GGA+RMC+empty+GNS+PGRMF)

Sheet Tabelle2
A1: Date | B1: Time | C1: utime | D1: stime | E1: timediff
A2: 27.04.20 | B2: 10.10 | C2: 2263 | D2: 457 | E2: =SUM(C2:D2)-SUM(C1:D1) -> 2720
A3: 27.04.20 | B3: 10.12 | C3: 2348 | D3: 468 | E3: =SUM(C3:D3)-SUM(C2:D2) -> 96
A4: 27.04.20 | B4: 10.15 | C4: 2896 | D4: 594 | E4: =SUM(C4:D4)-SUM(C3:D3) -> 674
A5: 27.04.20 | B5: 10.20 | C5: 4585 | D5: 1016 | E5: 2111
A6: 27.04.20 | B6: 10.25 | C6: 6302 | D6: 1411 | E6: 2112
A7: 27.04.20 | B7: 10.30 | C7: 7982 | D7: 1839 | E7: 2108
A8: 27.04.20 | B8: 10.35 | C8: 10055 | D8: 2306 | E8: 2540
A9: 27.04.20 | B9: 10.40 | C9: 12480 | D9: 2906 | E9: 3025
A10: 27.04.20 | B10: 10.45 | C10: 16059 | D10: 3672 | E10: 4345
A11: 27.04.20 | B11: 10.50 | C11: 1070 | D11: 218 | E11: -18443
A12: 27.04.20 | B12: 10.50 | C12: 1737 | D12: 352 | E12: 801
A13: 27.04.20 | B13: 10.55 | C13: 10149 | D13: 1726 | E13: 9786
A14: 27.04.20 | B14: 11.00 | C14: 19775 | D14: 3271 | E14: 11171
A15: 27.04.20 | B15: 11.05 | C15: 29270 | D15: 4847 | E15: 11071
A16: 27.04.20 | B16: 11.10 | C16: 38935 | D16: 6439 | E16: 11257
A17: 27.04.20 | B17: 11.15 | C17: 48553 | D17: 7979 | E17: 11158
A18: 27.04.20 | B18: 11.20 | C18: 58015 | D18: 9622 | E18: 11105
A19: 27.04.20 | B19: 11.25 | C19: 67588 | D19: 11178 | E19: 11129
A20: 27.04.20 | B20: 11.30 | C20: 77195 | D20: 12754 | E20: 11183
A21: 27.04.20 | B21: 11.35 | C21: 86814 | D21: 14299 | E21: 11164
A22: 27.04.20 | B22: 11.40 | C22: 96421 | D22: 15838 | E22: 11146
A23: 27.04.20 | B23: 11.45 | C23: 106031 | D23: 17375 | E23: 11147
A24: 27.04.20 | B24: 11.50 | C24: 115602 | D24: 18920 | E24: 11116
A25: 27.04.20 | B25: 11.55 | C25: 125177 | D25: 20515 | E25: 11170
A26: 27.04.20 | B26: 12.00 | C26: 134833 | D26: 22088 | E26: 11229
A27: 27.04.20 | B27: 12.05 | C27: 144375 | D27: 23641 | E27: 11095
A28: 27.04.20 | B28: 12.10 | C28: 154018 | D28: 25214 | E28: 11216
A29: 27.04.20 | B29: 12.15 | C29: 163610 | D29: 26723 | E29: 11101
A30: 27.04.20 | B30: 12.20 | C30: 173230 | D30: 28290 | E30: 11187
A31: 27.04.20 | B31: 12.25 | C31: 182802 | D31: 29941 | E31: 11223
A32: 27.04.20 | B32: 12.30 | C32: 192334 | D32: 31511 | E32: 11102
A33: 27.04.20 | B33: 12.35 | C33: 201995 | D33: 33046 | E33: 11196
A34: 27.04.20 | B34: 12.40 | C34: 211541 | D34: 34625 | E34: 11125
A35: 27.04.20 | B35: 12.45 | C35: 221158 | D35: 36272 | E35: 11264
A36: 27.04.20 | B36: 12.50 | C36: 230751 | D36: 37847 | E36: 11168
A37: 27.04.20 | B37: 12.55 | C37: 240334 | D37: 39381 | E37: 11117
A38: 27.04.20 | B38: 13.00 | C38: 249929 | D38: 40958 | E38: 11172
A39: 27.04.20 | B39: 13.05 | C39: 259530 | D39: 42539 | E39: 11182
A40: 27.04.20 | B40: 13.10 | C40: 269093 | D40: 44108 | E40: 11132
A41: 27.04.20 | B41: 13.15 | C41: 278693 | D41: 45648 | E41: 11140
A42: 27.04.20 | B42: 13.20 | C42: 288306 | D42: 47201 | E42: 11166
A43: 27.04.20 | B43: 13.25 | C43: 297898 | D43: 48777 | E43: 11168
A44: 27.04.20 | B44: 13.30 | C44: 307513 | D44: 50311 | E44: 11149
A45: 27.04.20 | B45: 13.35 | C45: 317134 | D45: 51929 | E45: 11239
A46: 27.04.20 | B46: 13.40 | C46: 326756 | D46: 53493 | E46: 11186
A47: 27.04.20 | B47: 13.45 | C47: 336353 | D47: 55039 | E47: 11143
A48: 27.04.20 | B48: 13.50 | C48: 345946 | D48: 56570 | E48: 11124
A49: 27.04.20 | B49: 13.55 | C49: 355491 | D49: 58168 | E49: 11143
A50: 27.04.20 | B50: 14.00 | C50: 365024 | D50: 59749 | E50: 11114
A51: 27.04.20 | B51: 14.05 | C51: 374639 | D51: 61312 | E51: 11178
A52: 27.04.20 | B52: 14.10 | C52: 384274 | D52: 62858 | E52: 11181
A53: 27.04.20 | B53: 14.15 | C53: 393838 | D53: 64416 | E53: 11122
A54: 27.04.20 | B54: 14.20 | C54: 403414 | D54: 66024 | E54: 11184
A55: 27.04.20 | B55: 14.25 | C55: 412882 | D55: 67673 | E55: 11117
A56: 27.04.20 | B56: 14.30 | C56: 422437 | D56: 69258 | E56: 11140
A57: 27.04.20 | B57: 14.35 | C57: 431965 | D57: 70845 | E57: 11115
A58: 27.04.20 | B58: 14.40 | C58: 441541 | D58: 72404 | E58: 11135
A59: 27.04.20 | B59: 14.45 | C59: 451147 | D59: 73925 | E59: 11127
A60: 27.04.20 | B60: 14.50 | C60: 460662 | D60: 75480 | E60: 11070
A61: 27.04.20 | B61: 14.55 | C61: 470218 | D61: 77070 | E61: 11146
A62: 27.04.20 | B62: 15.00 | C62: 479776 | D62: 78738 | E62: 11226
A63: 27.04.20 | B63: 15.05 | C63: 489370 | D63: 80285 | E63: 11141
A64: 27.04.20 | B64: 15.10 | C64: 498926 | D64: 81886 | E64: 11157
A65: 27.04.20 | B65: 15.15 | C65: 508588 | D65: 83463 | E65: 11239
A66: 27.04.20 | B66: 15.20 | C66: 518180 | D66: 85046 | E66: 11175
A67: 27.04.20 | B67: 15.25 | C67: 527742 | D67: 86619 | E67: 11135
A68: 27.04.20 | B68: 15.30 | C68: 537291 | D68: 88171 | E68: =SUM(C68:D68)-SUM(C67:D67) -> 11101
A69: 27.04.20 | B69: 15.35 | C69: 546779 | D69: 89787 | E69: 11104
A70: 27.04.20 | B70: 15.40 | C70: 556456 | D70: 91337 | E70: 11227
A71: 27.04.20 | B71: 15.45 | C71: 566070 | D71: 92886 | E71: 11163
A72: 27.04.20 | B72: 15.50 | C72: 575710 | D72: 94503 | E72: 11257
A73: 27.04.20 | B73: 15.55 | C73: 585263 | D73: 96058 | E73: 11108
A74: 27.04.20 | B74: 16.00 | C74: 594884 | D74: 97600 | E74: 11163
A75: 27.04.20 | B75: 16.05 | C75: 604394 | D75: 99216 | E75: 11126
A76: 27.04.20 | B76: 16.10 | C76: 613897 | D76: 100848 | E76: 11135
A77: 27.04.20 | B77: 16.15 | C77: 623374 | D77: 102447 | E77: 11076
A78: 27.04.20 | B78: 16.20 | C78: 632956 | D78: 103973 | E78: 11108
A79: 27.04.20 | B79: 16.25 | C79: 642520 | D79: 105499 | E79: 11090
A80: 27.04.20 | B80: 16.30 | C80: 652089 | D80: 107082 | E80: 11152
A81: 27.04.20 | B81: 16.35 | C81: 661719 | D81: 108650 | E81: 11198
A82: 27.04.20 | B82: 16.40 | C82: 671285 | D82: 110156 | E82: 11072
A83: 27.04.20 | B83: 16.45 | C83: 680936 | D83: 111705 | E83: 11200
A84: 27.04.20 | B84: 16.50 | C84: 690528 | D84: 113265 | E84: 11152
A85: 27.04.20 | B85: 16.55 | C85: 700044 | D85: 114871 | E85: 11122
A86: 27.04.20 | B86: 17.00 | C86: 709773 | D86: 116404 | E86: 11262
A87: 27.04.20 | B87: 17.05 | C87: 719364 | D87: 117977 | E87: 11164
A88: 27.04.20 | B88: 17.10 | C88: 728996 | D88: 119567 | E88: 11222
A89: 27.04.20 | B89: 17.15 | C89: 738563 | D89: 121113 | E89: 11113
A90: 27.04.20 | B90: 17.20 | C90: 748205 | D90: 122698 | E90: 11227
A91: 27.04.20 | B91: 17.25 | C91: 757770 | D91: 124319 | E91: 11186
A92: 27.04.20 | B92: 17.30 | C92: 767329 | D92: 125873 | E92: 11113
A93: 27.04.20 | B93: 17.35 | C93: 776874 | D93: 127486 | E93: 11158
A94: 27.04.20 | B94: 17.40 | C94: 786436 | D94: 129108 | E94: 11184
A95: 27.04.20 | B95: 17.45 | C95: 795938 | D95: 130669 | E95: 11063
A96: 27.04.20 | B96: 17.50 | C96: 805570 | D96: 132281 | E96: 11244
A97: 27.04.20 | B97: 17.55 | C97: 815150 | D97: 133908 | E97: 11207
A98: 27.04.20 | B98: 18.00 | C98: 824725 | D98: 135597 | E98: 11264
A99: 27.04.20 | B99: 18.05 | C99: 834347 | D99: 137182 | E99: 11207
A100: 27.04.20 | B100: 18.10 | C100: 843998 | D100: 138854 | E100: 11323
A101: 27.04.20 | B101: 18.15 | C101: 853676 | D101: 140489 | E101: 11313
A102: 27.04.20 | B102: 18.20 | C102: 863295 | D102: 142146 | E102: 11276
A103: 27.04.20 | B103: 18.25 | C103: 872894 | D103: 143796 | E103: 11249
A104: 27.04.20 | B104: 18.30 | C104: 882574 | D104: 145438 | E104: 11322
A105: 27.04.20 | B105: 18.35 | C105: 892202 | D105: 147110 | E105: 11300
A106: 27.04.20 | B106: 18.40 | C106: 901739 | D106: 148778 | E106: 11205
A107: 27.04.20 | B107: 18.45 | C107: 911390 | D107: 150408 | E107: 11281
A108: 27.04.20 | B108: 18.50 | C108: 921028 | D108: 152064 | E108: 11294
A109: 27.04.20 | B109: 18.55 | C109: 930662 | D109: 153691 | E109: 11261
A110: 27.04.20 | B110: 19.00 | C110: 940333 | D110: 155348 | E110: 11328
A111: 27.04.20 | B111: 19.05 | C111: 949960 | D111: 156976 | E111: 11255
A112: 27.04.20 | B112: 19.10 | C112: 959528 | D112: 158716 | E112: 11308
A113: 27.04.20 | B113: 19.15 | C113: 969181 | D113: 160369 | E113: 11306
A114: 27.04.20 | B114: 19.20 | C114: 978786 | D114: 161992 | E114: 11228
A115: 27.04.20 | B115: 19.25 | C115: 988335 | D115: 163654 | E115: 11211
A116: 27.04.20 | B116: 19.30 | C116: 997885 | D116: 165329 | E116: 11225
A117: 27.04.20 | B117: 19.35 | C117: 1007527 | D117: 167030 | E117: 11343
A118: 27.04.20 | B118: 19.40 | C118: 1017106 | D118: 168689 | E118: 11238
A119: 27.04.20 | B119: 19.45 | C119: 1026665 | D119: 170373 | E119: 11243
A120: 27.04.20 | B120: 19.50 | C120: 1036236 | D120: 172012 | E120: 11210
A121: 27.04.20 | B121: 19.54 | C121: 1300 | D121: 236 | E121: -1206712
A122: 27.04.20 | B122: 19.55 | C122: 3389 | D122: 719 | E122: 2572
A123: 27.04.20 | B123: 20.00 | C123: 14000 | D123: 3158 | E123: 13050
A124: 27.04.20 | B124: 20.05 | C124: 24860 | D124: 5599 | E124: 13301
A125: 27.04.20 | B125: 20.10 | C125: 35540 | D125: 8165 | E125: 13246
A126: 27.04.20 | B126: 20.15 | C126: 46191 | D126: 10669 | E126: 13155
A127: 27.04.20 | B127: 20.20 | C127: 56980 | D127: 13101 | E127: 13221
A128: 27.04.20 | B128: 20.25 | C128: 67756 | D128: 15513 | E128: 13188
A129: 27.04.20 | B129: 20.30 | C129: 78574 | D129: 17967 | E129: 13272
A130: 27.04.20 | B130: 20.35 | C130: 89380 | D130: 20399 | E130: 13238
A131: 27.04.20 | B131: 20.40 | C131: 100164 | D131: 22702 | E131: 13087
A132: 27.04.20 | B132: 20.45 | C132: 110847 | D132: 25270 | E132: =SUM(C132:D132)-SUM(C131:D131) -> 13251
A133: 27.04.20 | B133: 20.50 | C133: 121522 | D133: 27751 | E133: 13156
A134: 27.04.20 | B134: 20.55 | C134: 132282 | D134: 30118 | E134: 13127
A135: 27.04.20 | B135: 21.00 | C135: 143140 | D135: 32472 | E135: 13212
A136: 27.04.20 | B136: 21.05 | C136: 153846 | D136: 34955 | E136: 13189
A137: 27.04.20 | B137: 21.10 | C137: 164632 | D137: 37350 | E137: 13181
A138: 27.04.20 | B138: 21.15 | C138: 175301 | D138: 39873 | E138: 13192
A139: 27.04.20 | B139: 21.20 | C139: 186025 | D139: 42290 | E139: 13141
A140: 27.04.20 | B140: 21.25 | C140: 196841 | D140: 44698 | E140: 13224
A141: 27.04.20 | B141: 21.30 | C141: 207541 | D141: 47070 | E141: 13072
A142: 27.04.20 | B142: 21.35 | C142: 218237 | D142: 49499 | E142: 13125
A143: 27.04.20 | B143: 21.40 | C143: 228966 | D143: 51930 | E143: 13160
A144: 27.04.20 | B144: 21.45 | C144: 239817 | D144: 54287 | E144: 13208
A145: 27.04.20 | B145: 21.50 | C145: 250544 | D145: 56697 | E145: 13137
A146: 27.04.20 | B146: 21.55 | C146: 261310 | D146: 59091 | E146: 13160
A147: 27.04.20 | B147: 22.00 | C147: 272070 | D147: 61496 | E147: 13165
A148: 27.04.20 | B148: 22.05 | C148: 282844 | D148: 63863 | E148: 13141
A149: 27.04.20 | B149: 22.10 | C149: 293687 | D149: 66268 | E149: 13248
A150: 27.04.20 | B150: 22.15 | C150: 304507 | D150: 68670 | E150: 13222
A151: 27.04.20 | B151: 22.20 | C151: 315281 | D151: 71107 | E151: 13211
A152: 27.04.20 | B152: 22.25 | C152: 326043 | D152: 73478 | E152: 13133
A153: 27.04.20 | B153: 22.30 | C153: 336811 | D153: 75918 | E153: 13208
A154: 27.04.20 | B154: 22.35 | C154: 347541 | D154: 78363 | E154: 13175
A155: 27.04.20 | B155: 22.40 | C155: 358449 | D155: 80716 | E155: 13261
A156: 27.04.20 | B156: 22.45 | C156: 369148 | D156: 83163 | E156: 13146
A157: 27.04.20 | B157: 22.50 | C157: 379939 | D157: 85522 | E157: 13150
A158: 27.04.20 | B158: 22.55 | C158: 390694 | D158: 87949 | E158: 13182
A159: 27.04.20 | B159: 23.00 | C159: 401382 | D159: 90278 | E159: 13017
A160: 27.04.20 | B160: 23.05 | C160: 412277 | D160: 92561 | E160: 13178
A161: 27.04.20 | B161: 23.10 | C161: 423006 | D161: 94997 | E161: 13165
A162: 27.04.20 | B162: 23.15 | C162: 433760 | D162: 97481 | E162: 13238
A163: 27.04.20 | B163: 23.20 | C163: 444453 | D163: 99905 | E163: 13117
A164: 27.04.20 | B164: 23.25 | C164: 455259 | D164: 102265 | E164: 13166
A165: 27.04.20 | B165: 23.30 | C165: 465988 | D165: 104702 | E165: 13166
A166: 27.04.20 | B166: 23.35 | C166: 476791 | D166: 107108 | E166: 13209
A167: 27.04.20 | B167: 23.40 | C167: 487473 | D167: 109612 | E167: 13186
A168: 27.04.20 | B168: 23.45 | C168: 498290 | D168: 111973 | E168: 13178
A169: 27.04.20 | B169: 23.50 | C169: 509037 | D169: 114422 | E169: 13196
A170: 27.04.20 | B170: 23.55 | C170: 519859 | D170: 116814 | E170: 13214
A171: 28.04.20 | B171: 00.00 | C171: 530607 | D171: 119217 | E171: 13151
A172: 28.04.20 | B172: 00.05 | C172: 541337 | D172: 121587 | E172: 13100
A173: 28.04.20 | B173: 00.10 | C173: 552094 | D173: 124013 | E173: 13183
A174: 28.04.20 | B174: 00.15 | C174: 562754 | D174: 126594 | E174: 13241
A175: 28.04.20 | B175: 00.20 | C175: 573436 | D175: 129017 | E175: 13105
A176: 28.04.20 | B176: 00.25 | C176: 584166 | D176: 131398 | E176: 13111
A177: 28.04.20 | B177: 00.30 | C177: 594784 | D177: 133946 | E177: 13166
A178: 28.04.20 | B178: 00.35 | C178: 605539 | D178: 136362 | E178: 13171
A179: 28.04.20 | B179: 00.40 | C179: 616337 | D179: 138761 | E179: 13197
A180: 28.04.20 | B180: 00.45 | C180: 627125 | D180: 141200 | E180: 13227
A181: 28.04.20 | B181: 00.50 | C181: 637792 | D181: 143649 | E181: 13116
A182: 28.04.20 | B182: 00.55 | C182: 648602 | D182: 146032 | E182: 13193
A183: 28.04.20 | B183: 01.00 | C183: 659446 | D183: 148405 | E183: 13217
A184: 28.04.20 | B184: 01.05 | C184: 670184 | D184: 150864 | E184: 13197
A185: 28.04.20 | B185: 01.10 | C185: 680938 | D185: 153260 | E185: 13150
A186: 28.04.20 | B186: 01.15 | C186: 691797 | D186: 155569 | E186: 13168
A187: 28.04.20 | B187: 01.20 | C187: 702624 | D187: 157940 | E187: 13198
A188: 28.04.20 | B188: 01.25 | C188: 713372 | D188: 160298 | E188: 13106
A189: 28.04.20 | B189: 01.30 | C189: 724225 | D189: 162664 | E189: 13219
A190: 28.04.20 | B190: 01.35 | C190: 734973 | D190: 165033 | E190: 13117
A191: 28.04.20 | B191: 01.40 | C191: 745750 | D191: 167441 | E191: 13185
A192: 28.04.20 | B192: 01.45 | C192: 756568 | D192: 169834 | E192: 13211
A193: 28.04.20 | B193: 01.50 | C193: 767401 | D193: 172224 | E193: 13223
A194: 28.04.20 | B194: 01.55 | C194: 778193 | D194: 174638 | E194: 13206
A195: 28.04.20 | B195: 02.00 | C195: 788913 | D195: 177108 | E195: 13190
A196: 28.04.20 | B196: 02.05 | C196: 799650 | D196: 179523 | E196: =SUM(C196:D196)-SUM(C195:D195) -> 13152
A197: 28.04.20 | B197: 02.10 | C197: 810467 | D197: 181889 | E197: 13183
A198: 28.04.20 | B198: 02.15 | C198: 821166 | D198: 184332 | E198: 13142
A199: 28.04.20 | B199: 02.20 | C199: 831869 | D199: 186767 | E199: 13138
A200: 28.04.20 | B200: 02.25 | C200: 842660 | D200: 189127 | E200: 13151
... 2205 more rows

Sheet Tabelle3
A2: Elevation Tool | B2: 3.0%
A3: Idle | B3: 16.0%
A4: BT GPS Location Processing | B4: 33.0%
A5: 3 hours recording | B5: 14.0%
A6: +3 hours recording | B6: 14.0%
A7: +3 hours recording | B7: 14.0%
A8: Dashboard | B8: 9.0%
A9: Vector Map Rendering | B9: 1.0%
A10: Navigation | B10: 6.0%
A12: CPU Time over baseline | B12: =SUM(B2:B10) -> 110.0%
